lending/lending_fUSD_20250917
["ID","MTS","AMOUNT","RATE_DAILY","PERIOD"]
[385872865,1758078642461,-160.0,0.00028268,14]
[385872867,1758078642471,-160.0,0.00028268,14]
[385872869,1758078642483,-160.0,0.00028268,14]
[385872871,1758078642493,-160.0,0.00028268,14]
[385872873,1758078642503,-160.0,0.00028268,14]
[385872875,1758078642512,-160.0,0.00028268,14]
[385872877,1758078642522,-160.0,0.00028268,14]
[385872879,1758078642534,-160.0,0.00028268,14]
[385872881,1758078642544,-160.0,0.00028268,14]
[385872883,1758078642554,-160.0,0.00028268,14]
[385872885,1758078642569,-160.0,0.00028268,14]
[385872887,1758078642579,-160.0,0.00028268,14]
[385872889,1758078642588,-160.0,0.00028268,14]
[385872891,1758078642598,-160.0,0.00028268,14]
[385872893,1758078642607,-160.0,0.00028268,14]
[385872895,1758078642617,-160.0,0.00028268,14]
[385872897,1758078642626,-160.0,0.00028268,14]
[385872899,1758078642636,-160.0,0.00028268,14]
[385872900,1758078642646,-160.0,0.00028268,14]
[385872901,1758078642655,-160.0,0.00028268,14]
[385872902,1758078642664,-160.0,0.00028268,14]
[385872903,1758078642674,-160.0,0.00028268,14]
[385872904,1758078642683,-160.0,0.00028268,14]
[385872905,1758078642692,-160.0,0.00028268,14]
[385872906,1758078642701,-160.0,0.00028268,14]
[385872907,1758078642711,-160.0,0.00028268,14]
[385872908,1758078642721,-160.0,0.00028268,14]
[385872909,1758078642730,-160.0,0.00028268,14]
[385872910,1758078642740,-160.0,0.00028268,14]
[385872911,1758078642749,-160.0,0.00028268,14]
[385872912,1758078642758,-160.0,0.00028268,14]
[385872913,1758078642768,-160.0,0.00028268,14]
[385872914,1758078642777,-160.0,0.00028268,14]
[385872915,1758078642787,-160.0,0.00028268,14]
[385872916,1758078642798,-160.0,0.00028268,14]
[385872917,1758078642809,-160.0,0.00028268,14]
[385872918,1758078642820,-160.0,0.00028268,14]
[385872919,1758078642832,-160.0,0.00028268,14]
[385872920,1758078642842,-160.0,0.00028268,14]
[385872921,1758078642854,-160.0,0.00028268,14]
[385872922,1758078642864,-160.0,0.00028268,14]
[385872923,1758078642873,-160.0,0.00028268,14]
[385872924,1758078642883,-160.0,0.00028268,14]
[385872925,1758078642893,-160.0,0.00028268,14]
[385872926,1758078642902,-160.0,0.00028268,14]
[385872927,1758078642912,-160.0,0.00028268,14]
[385872928,1758078642922,-160.0,0.00028268,14]
[385872929,1758078642932,-160.0,0.00028268,14]
[385872930,1758078642944,-160.0,0.00028268,14]
[385872931,1758078642954,-160.0,0.00028268,14]
[385872932,1758078642964,-160.0,0.00028268,14]
[385872933,1758078642975,-160.0,0.00028268,14]
[385872934,1758078642984,-160.0,0.00028268,14]
[385872935,1758078642994,-160.0,0.00028268,14]
[385872936,1758078643003,-160.0,0.00028268,14]
[385872937,1758078643014,-160.0,0.00028268,14]
[385872938,1758078643025,-160.0,0.00028268,14]
[385872940,1758078643034,-160.0,0.00028268,14]
[385872941,1758078643044,-160.0,0.00028268,14]
[385872942,1758078643053,-160.0,0.00028268,14]
[385872943,1758078643063,-160.0,0.00028268,14]
[385872944,1758078643073,-160.0,0.00028268,14]
[385872945,1758078643082,-160.0,0.00028268,14]
[385872946,1758078643092,-160.0,0.00028268,14]
[385872947,1758078643101,-160.0,0.00028268,14]
[385872948,1758078643111,-160.0,0.00028268,14]
[385872949,1758078643120,-160.0,0.00028268,14]
[385872950,1758078643130,-160.0,0.00028268,14]
[385872952,1758078643139,-160.0,0.00028268,14]
[385872953,1758078643148,-160.0,0.00028268,14]
[385872954,1758078643157,-160.0,0.00028268,14]
[385872955,1758078643167,-160.0,0.00028268,14]
[385872956,1758078643176,-160.0,0.00028268,14]
[385872957,1758078643185,-160.0,0.00028268,14]
[385872958,1758078643194,-160.0,0.00028268,14]
[385872960,1758078643204,-160.0,0.00028268,14]
[385872961,1758078643213,-160.0,0.00028268,14]
[385872962,1758078643222,-160.0,0.00028268,14]
[385872963,1758078643231,-160.0,0.00028268,14]
[385872964,1758078643241,-160.0,0.00028268,14]
[385872965,1758078643250,-160.0,0.00028268,14]
[385872966,1758078643259,-160.0,0.00028268,14]
[385872967,1758078643269,-160.0,0.00028268,14]
[385872968,1758078643277,-160.0,0.00028268,14]
[385872969,1758078643287,-160.0,0.00028268,14]
[385872970,1758078643296,-160.0,0.00028268,14]
[385872971,1758078643306,-160.0,0.00028268,14]
[385872972,1758078643315,-160.0,0.00028268,14]
[385872973,1758078643324,-160.0,0.00028268,14]
[385872974,1758078643333,-160.0,0.00028268,14]
[385872975,1758078643343,-160.0,0.00028268,14]
[385872976,1758078643352,-160.0,0.00028268,14]
[385872977,1758078643362,-160.0,0.00028268,14]
[385872978,1758078643371,-160.0,0.00028268,14]
[385872979,1758078643380,-1500.0,0.00028268,5]
[385872980,1758078643390,-1743.57,0.00028272,2]
[385872981,1758078643399,-1000.0,0.00028321,5]
[385872982,1758078643409,-1000.0,0.00028321,5]
[385872983,1758078643418,-16095.1544624,0.00028449,3]
[385872984,1758078643427,-1500.0,0.00028468,5]
[385872985,1758078643436,-1500.0,0.00028468,5]
[385872986,1758078643446,-1500.0,0.00028468,5]
[385872987,1758078643455,-1799.21920692,0.00028512,2]
[385872988,1758078643464,-3000.0,0.00028512,5]
[385872989,1758078643473,-2000.0,0.00028512,5]
[385872990,1758078643486,-1000.0,0.00028521,5]
[385872991,1758078643498,-524.26327614,0.00028521,5]
[385872992,1758078643507,-161.90209112,0.00028529,2]
[385872993,1758078643516,-300.0,0.00028547,2]
[385872994,1758078643526,-382.28405052,0.00028569,2]
[385872995,1758078643538,-500.0,0.00028573,5]
[385872996,1758078643548,-160.0,0.0002859,3]
[385872997,1758078643559,-250.0,0.00028617,5]
[385872998,1758078643568,-250.0,0.00028617,5]
[385872999,1758078643577,-500.0,0.00028628,5]
[385873000,1758078643587,-234.43,0.00028629,2]
[385873001,1758078643596,-666.0,0.00028682,10]
[385873002,1758078643605,-19378.88262933,0.00028683,2]
[385873003,1758078643616,-1003.32700358,0.00028713,5]
[385873004,1758078643626,-1011.72528243,0.00028713,5]
[385873005,1758078643636,-1000.0,0.00028713,5]
[385873006,1758078643645,-1000.0,0.00028713,5]
[385873007,1758078643655,-2000.0,0.00028716,5]
[385873008,1758078643664,-1000.0,0.00028757,5]
[385873009,1758078643674,-2500.0,0.00028764,5]
[385873010,1758078643684,-309.93497039,0.00028764,5]
[385873011,1758078643694,-2000.0,0.00028767,2]
[385873012,1758078643703,-2000.0,0.00028767,2]
[385873013,1758078643712,-2000.0,0.00028767,2]
[385873014,1758078643722,-2000.0,0.00028767,2]
[385873015,1758078643731,-2000.0,0.00028767,2]
[385873016,1758078643740,-2000.0,0.00028767,2]
[385873017,1758078643750,-2000.0,0.00028767,2]
[385873018,1758078643759,-2000.0,0.00028767,2]
[385873019,1758078643768,-2023.0,0.00028767,2]
[385873020,1758078643782,-2000.0,0.00028767,2]
[385873021,1758078643791,-2000.0,0.00028767,2]
[385873022,1758078643801,-600.0,0.00028767,2]
[385873023,1758078643810,-200.0,0.00028767,2]
[385873025,1758078643820,-200.0,0.00028767,2]
[385873027,1758078643829,-167.83,0.00028802,2]
[385873029,1758078643839,-744.11491759,0.00028816,5]
[385873031,1758078643848,-880.57465412,0.00028817,2]
[385873033,1758078643857,-1009.12879047,0.00028868,5]
[385873035,1758078643867,-1500.0,0.00028868,5]
[385873037,1758078643877,-600.0,0.0002899,5]
[385873039,1758078643886,-2000.0,0.00029016,5]
[385873041,1758078643895,-758.03041969,0.00029016,5]
[385873043,1758078643905,-1026.42837724,0.00029016,5]
[385873045,1758078643915,-3500.0,0.0002906,5]
[385873046,1758078643925,-222.90160042,0.00029068,5]
[385873047,1758078643934,-1000.0,0.00029121,5]
[385873048,1758078643944,-404.02,0.00029147,2]
[385873049,1758078643954,-350.0,0.00029165,5]
[385873050,1758078643966,-350.0,0.00029165,5]
[385873051,1758078643975,-500.0,0.00029176,5]
[385873052,1758078643986,-587.0,0.00029227,2]
[385873053,1758078643995,-1000.0,0.00029261,5]
[385873054,1758078644006,-500.0,0.00029261,5]
[385873055,1758078644015,-2500.0,0.00029264,5]
[385873056,1758078644132,-1161.6603673,0.00029305,5]
[385873057,1758078644141,-790.14684886,0.00029312,5]
[385873058,1758078644150,-207.4,0.00029314,2]
[385873059,1758078644159,-600.0,0.00029315,2]
[385873060,1758078644168,-200.0,0.00029315,2]
[385873061,1758078644179,-200.0,0.00029315,2]
[385873062,1758078644188,-7000.0,0.00029397,2]
[385873063,1758078644197,-774.71621033,0.00029416,5]
[385873064,1758078644207,-600.0,0.00029435,2]
[385873065,1758078644216,-2351.0,0.00029492,2]
[385873066,1758078644225,-893.57098146,0.00029564,5]
[385873067,1758078644235,-3394.19060861,0.00029608,5]
[385873068,1758078644244,-1743.57,0.00029619,2]
[385873069,1758078644254,-150.0,0.00029663,7]
[385873070,1758078644263,-174.85081994,0.00029663,7]
[385873071,1758078644272,-150.0,0.00029663,7]
[385873072,1758078644281,-155.36726569,0.00029663,7]
[385873073,1758078644291,-150.0,0.00029663,7]
[385873074,1758078644300,-240.36296035,0.00029663,7]
[385873075,1758078644310,-150.0,0.00029663,7]
[385873076,1758078644320,-1500.0,0.00029668,5]
[385873077,1758078644330,-450.0,0.00029713,5]
[385873078,1758078644339,-254.18901386,0.00029713,5]
[385873079,1758078644348,-500.0,0.00029724,5]
[385873080,1758078644357,-154.632167,0.00029727,7]
[385873081,1758078644367,-218.649692,0.00029727,7]
[385873082,1758078644378,-218.649692,0.00029727,7]
[385873083,1758078644387,-218.649692,0.00029727,7]
[385873084,1758078644398,-151.0,0.00029727,7]
[385873085,1758078644408,-218.649692,0.00029727,7]
[385873086,1758078644417,-273.991423,0.00029727,7]
[385873087,1758078644426,-151.0,0.00029727,7]
[385873088,1758078644435,-158.811908,0.00029727,7]
[385873089,1758078644445,-19378.88262933,0.00029783,2]
[385873090,1758078644455,-458.85179946,0.00029812,5]
[385873091,1758078644466,-156.420548,0.00029815,7]
[385873092,1758078644475,-151.0,0.00029815,7]
[385873093,1758078644487,-151.0,0.00029815,7]
[385873094,1758078644496,-154.384857,0.00029815,7]
[385873095,1758078644506,-151.0,0.00029815,7]
[385873096,1758078644516,-152.784923,0.00029815,7]
[385873097,1758078644527,-151.0,0.00029815,7]
[385873098,1758078644536,-151.0,0.00029815,7]
[385873099,1758078644545,-151.0,0.00029815,7]
[385873100,1758078644554,-151.0,0.00029815,7]
[385873101,1758078644565,-151.0,0.00029815,7]
[385873102,1758078644575,-151.0,0.00029815,7]
[385873103,1758078644584,-151.0,0.00029815,7]
[385873104,1758078644595,-174.841931,0.00029815,7]
[385873105,1758078644604,-243.016479,0.00029815,7]
[385873106,1758078644614,-243.016479,0.00029815,7]
[385873107,1758078644624,-161.395355,0.00029815,7]
[385873108,1758078644634,-243.016479,0.00029815,7]
[385873109,1758078644643,-243.016479,0.00029815,7]
[385873110,1758078644653,-151.0,0.00029815,7]
[385873111,1758078644662,-414.405973,0.00029815,7]
[385873112,1758078644671,-414.405973,0.00029815,7]
[385873113,1758078644680,-157.154262,0.00029815,7]
[385873114,1758078644688,-414.405973,0.00029815,7]
[385873115,1758078644698,-414.405973,0.00029815,7]
[385873116,1758078644706,-158.752658,0.00029815,7]
[385873117,1758078644716,-600.0,0.00029863,2]
[385873118,1758078644725,-202.47675059,0.00029863,2]
[385873119,1758078644734,-200.0,0.00029863,2]
[385873120,1758078644743,-160.0,0.000299,7]
[385873121,1758078644753,-6213.73,0.00029935,2]
[385873122,1758078644762,-726.0,0.00029935,2]
[385873123,1758078644771,-4172.0,0.00029935,2]
[385873124,1758078644781,-18862.0,0.00029935,2]
[385873125,1758078644790,-800.0,0.00029949,5]
[385873126,1758078644799,-880.57465412,0.00029985,15]
[385873127,1758078644808,-5038.86328272,0.0003,2]
[385873128,1758078644818,-258.0,0.0003,2]
[385873129,1758078644827,-152.402784,0.0003,7]
[385873130,1758078644836,-151.0,0.0003,7]
[385873131,1758078644845,-151.0,0.0003,7]
[385873132,1758078644854,-204.534279,0.0003,7]
[385873133,1758078644864,-4000.0,0.0003,4]
[385873134,1758078644873,-160.77690757,0.00030007,5]
[385873135,1758078644882,-200.0,0.00030027,2]
[385873136,1758078644891,-851.26773969,0.00030027,14]
[385873137,1758078644900,-234.43,0.0003006,2]
[385873138,1758078644910,-200.0,0.000301,2]
[385873139,1758078644919,-200.0,0.000301,2]
[385873140,1758078644929,-500.0,0.00030215,5]
[385873141,1758078644938,-2000.0,0.00030216,5]
[385873142,1758078644948,-550.0,0.00030261,5]
[385873143,1758078644957,-500.0,0.00030272,5]
[385873144,1758078644966,-150.0,0.000303,2]
[385873145,1758078644976,-200.0,0.00030327,2]
[385873146,1758078644985,-776.34,0.000304,2]
[385873147,1758078644994,-200.0,0.00030401,2]
[385873148,1758078645003,-914.244,0.00030407,26]
[385873149,1758078645013,-164.87388731,0.00030407,26]
[385873150,1758078645022,-600.0,0.00030411,2]
[385873151,1758078645032,-200.0,0.00030411,2]
[385873152,1758078645043,-253.65,0.00030431,2]
[385873153,1758078645052,-171.58,0.00030476,2]
[385873154,1758078645062,-884.8684123,0.00030529,2]
[385873155,1758078645072,-2095.4703493,0.00030529,2]
[385873156,1758078645082,-169.68,0.0003062,2]
[385873157,1758078645091,-29999.99,0.0003062,2]
[385873158,1758078645101,-1176.19,0.0003062,2]
[385873159,1758078645110,-9999.99,0.0003062,2]
[385873160,1758078645122,-19999.99,0.0003062,2]
[385873161,1758078645131,-200.0,0.00030631,2]
[385873162,1758078645141,-200.0,0.00030705,2]
[385873163,1758078645150,-271.41817218,0.00030764,5]
[385873164,1758078645160,-265.79611589,0.00030808,5]
[385873165,1758078645169,-500.0,0.0003082,5]
[385873166,1758078645178,-150.86,0.00030858,2]
[385873167,1758078645187,-19378.88262933,0.00030884,2]
[385873168,1758078645197,-600.0,0.00030896,2]
[385873169,1758078645207,-1000.0,0.00030908,5]
[385873170,1758078645217,-200.0,0.00030937,2]
[385873171,1758078645227,-600.0,0.00030959,2]
[385873172,1758078645238,-1743.57,0.00030965,2]
[385873173,1758078645247,-167.83,0.00030997,2]
[385873174,1758078645257,-158.0,0.00031,120]
[385873175,1758078645267,-4000.0,0.00031,4]
[385873176,1758078645279,-200.0,0.00031012,2]
[385873177,1758078645288,-155.57436208,0.0003103,2]
[385873178,1758078645298,-880.57465412,0.00031153,15]
[385873179,1758078645307,-197.4408305,0.00031295,2]
[385873180,1758078645315,-467.5626346,0.00031295,2]
[385873181,1758078645325,-200.0,0.00031322,2]
[385873182,1758078645334,-500.0,0.00031368,5]
[385873183,1758078645343,-7000.0,0.00031397,2]
[385873184,1758078645353,-151.0,0.00031397,7]
[385873185,1758078645363,-254.884899,0.00031397,7]
[385873186,1758078645372,-254.884899,0.00031397,7]
[385873187,1758078645381,-254.884899,0.00031397,7]
[385873188,1758078645390,-258.00073,0.00031397,7]
[385873189,1758078645400,-254.884899,0.00031397,7]
[385873190,1758078645409,-151.0,0.00031397,7]
[385873191,1758078645418,-152.957816,0.00031397,7]
[385873192,1758078645427,-151.0,0.00031397,7]
[385873193,1758078645436,-151.0,0.00031397,7]
[385873194,1758078645445,-254.514932,0.00031397,7]
[385873195,1758078645454,-811.592004,0.00031397,7]
[385873196,1758078645464,-151.0,0.00031397,7]
[385873197,1758078645474,-811.592004,0.00031397,7]
[385873198,1758078645488,-254.514932,0.00031397,7]
[385873199,1758078645499,-811.592004,0.00031397,7]
[385873200,1758078645509,-811.592004,0.00031397,7]
[385873201,1758078645519,-254.514932,0.00031397,7]
[385873202,1758078645529,-152.611812,0.00031397,7]
[385873203,1758078645542,-254.514932,0.00031397,7]
[385873204,1758078645551,-151.0,0.00031397,7]
[385873205,1758078645561,-151.0,0.00031397,7]
[385873206,1758078645573,-151.0,0.00031397,7]
[385873207,1758078645583,-160.350345,0.00031397,7]
[385873208,1758078645593,-151.0,0.00031397,7]
[385873209,1758078645603,-151.0,0.00031397,7]
[385873210,1758078645820,-151.0,0.00031397,7]
[385873211,1758078645830,-151.0,0.00031397,7]
[385873212,1758078645841,-151.0,0.00031397,7]
[385873213,1758078645851,-151.0,0.00031397,7]
[385873214,1758078645860,-221.865103,0.00031397,7]
[385873215,1758078645870,-151.0,0.00031397,7]
[385873216,1758078645879,-151.0,0.00031397,7]
[385873217,1758078645890,-234.43,0.00031492,2]
[385873218,1758078645899,-600.0,0.00031507,2]
[385873219,1758078645910,-823.0,0.00031666,2]
[385873220,1758078645920,-150.0,0.0003167,2]
[385873221,1758078645929,-606.93891785,0.00031692,25]
[385873222,1758078645940,-1200.0,0.00031867,5]
[385873223,1758078645949,-500.0,0.00031916,5]
[385873224,1758078645959,-19378.88262933,0.00031985,2]
[385873225,1758078645968,-4000.0,0.00032,4]
[385873226,1758078645978,-215.0738,0.00032053,2]
[385873227,1758078645987,-800.0,0.00032054,29]
[385873228,1758078645997,-600.0,0.00032055,2]
[385873230,1758078646006,-151.0,0.00032063,2]
[385873231,1758078646016,-155.54787904,0.00032063,2]
[385873233,1758078646026,-3000.0,0.00032063,2]
[385873234,1758078646035,-151.0,0.00032063,2]
[385873235,1758078646045,-500.0,0.00032063,2]
[385873236,1758078646055,-646.65982734,0.00032063,2]
[385873238,1758078646064,-151.0,0.00032063,2]
[385873240,1758078646074,-500.0,0.00032063,2]
[385873241,1758078646083,-8565.75555911,0.00032063,2]
[385873242,1758078646093,-160.0,0.00032063,2]
[385873243,1758078646102,-500.0,0.00032063,2]
[385873244,1758078646111,-500.0,0.00032063,2]
[385873245,1758078646122,-500.0,0.00032063,2]
[385873246,1758078646132,-500.0,0.00032063,2]
[385873247,1758078646143,-500.0,0.00032063,2]
[385873248,1758078646152,-500.0,0.00032063,2]
[385873249,1758078646162,-500.0,0.00032063,2]
[385873250,1758078646171,-500.0,0.00032063,2]
[385873251,1758078646182,-500.0,0.00032063,2]
[385873252,1758078646191,-500.0,0.00032063,2]
[385873253,1758078646201,-500.0,0.00032063,2]
[385873254,1758078646210,-500.0,0.00032063,2]
[385873255,1758078646220,-500.0,0.00032063,2]
[385873256,1758078646230,-153.55365898,0.00032063,2]
[385873257,1758078646240,-500.0,0.00032063,2]
[385873258,1758078646249,-500.0,0.00032063,2]
[385873259,1758078646259,-500.0,0.00032063,2]
[385873260,1758078646268,-500.0,0.00032063,2]
[385873261,1758078646278,-500.0,0.00032063,2]
[385873262,1758078646287,-500.0,0.00032063,2]
[385873263,1758078646296,-500.0,0.00032063,2]
[385873264,1758078646306,-500.0,0.00032063,2]
[385873265,1758078646316,-500.0,0.00032063,2]
[385873266,1758078646326,-500.0,0.00032063,2]
[385873267,1758078646335,-500.0,0.00032063,2]
[385873268,1758078646345,-500.0,0.00032063,2]
[385873269,1758078646354,-500.0,0.00032063,2]
[385873270,1758078646363,-151.0,0.00032063,2]
[385873271,1758078646374,-500.0,0.00032063,2]
[385873272,1758078646383,-318.69557058,0.00032063,2]
[385873273,1758078646393,-322.6107,0.00032063,2]
[385873274,1758078646403,-151.0,0.00032063,2]
[385873275,1758078646412,-151.0,0.00032063,2]
[385873276,1758078646422,-250.0,0.00032063,2]
[385873277,1758078646431,-250.0,0.00032063,2]
[385873278,1758078646441,-1000.0,0.00032063,2]
[385873279,1758078646451,-250.0,0.00032063,2]
[385873280,1758078646460,-151.0,0.00032063,2]
[385873281,1758078646470,-1000.0,0.00032063,2]
[385873282,1758078646480,-250.0,0.00032063,2]
[385873283,1758078646492,-1000.0,0.00032063,2]
[385873284,1758078646502,-1000.0,0.00032063,2]
[385873285,1758078646512,-250.0,0.00032063,2]
[385873286,1758078646522,-1000.0,0.00032063,2]
[385873287,1758078646532,-250.0,0.00032063,2]
[385873288,1758078646543,-250.0,0.00032063,2]
[385873289,1758078646552,-1000.0,0.00032063,2]
[385873290,1758078646563,-1000.0,0.00032063,2]
[385873291,1758078646573,-250.0,0.00032063,2]
[385873292,1758078646582,-261.86868616,0.00032063,2]
[385873293,1758078646592,-1000.0,0.00032063,2]
[385873294,1758078646602,-1000.0,0.00032063,2]
[385873295,1758078646612,-1000.0,0.00032063,2]
[385873296,1758078646621,-152.09821391,0.00032063,2]
[385873297,1758078646631,-151.0,0.00032063,2]
[385873298,1758078646642,-1000.0,0.00032063,2]
[385873299,1758078646653,-205.17427509,0.00032063,2]
[385873300,1758078646663,-1000.0,0.00032063,2]
[385873301,1758078646672,-1000.0,0.00032063,2]
[385873302,1758078646682,-1000.0,0.00032063,2]
[385873303,1758078646692,-500.0,0.00032063,2]
[385873304,1758078646703,-500.0,0.00032063,2]
[385873305,1758078646713,-248.71531821,0.00032063,2]
[385873306,1758078646722,-500.0,0.00032063,2]
[385873307,1758078646732,-180.13689359,0.00032063,2]
[385873308,1758078646742,-500.0,0.00032063,2]
[385873309,1758078646751,-500.0,0.00032063,2]
[385873310,1758078646761,-500.0,0.00032063,2]
[385873311,1758078646770,-151.0,0.00032063,2]
[385873312,1758078646780,-500.0,0.00032063,2]
[385873313,1758078646789,-500.0,0.00032063,2]
[385873314,1758078646798,-151.0,0.00032063,2]
[385873315,1758078646807,-254.97555414,0.00032063,2]
[385873316,1758078646817,-151.0,0.00032063,2]
[385873317,1758078646827,-151.0,0.00032063,2]
[385873318,1758078646836,-500.0,0.00032063,2]
[385873319,1758078646846,-151.0,0.00032063,2]
[385873320,1758078646856,-500.0,0.00032063,2]
[385873322,1758078646865,-151.0,0.00032063,2]
[385873323,1758078646875,-151.0,0.00032063,2]
[385873324,1758078646884,-500.0,0.00032063,2]
[385873325,1758078646894,-151.0,0.00032063,2]
[385873326,1758078646903,-500.0,0.00032063,2]
[385873327,1758078646913,-151.0,0.00032063,2]
[385873328,1758078646923,-500.0,0.00032063,2]
[385873329,1758078646932,-151.0,0.00032063,2]
[385873331,1758078646942,-500.0,0.00032063,2]
[385873333,1758078646952,-151.0,0.00032063,2]
[385873335,1758078646961,-151.0,0.00032063,2]
[385873337,1758078646971,-500.0,0.00032063,2]
[385873339,1758078646980,-151.0,0.00032063,2]
[385873342,1758078646990,-151.0,0.00032063,2]
[385873344,1758078647000,-500.0,0.00032063,2]
[385873346,1758078647010,-151.0,0.00032063,2]
[385873348,1758078647019,-161.75609581,0.00032063,2]
[385873350,1758078647029,-500.0,0.00032063,2]
[385873352,1758078647038,-151.0,0.00032063,2]
[385873354,1758078647047,-151.0,0.00032063,2]
[385873356,1758078647056,-500.0,0.00032063,2]
[385873358,1758078647065,-1000.0,0.00032063,2]
[385873360,1758078647075,-500.0,0.00032063,2]
[385873362,1758078647084,-151.0,0.00032063,2]
[385873364,1758078647093,-1000.0,0.00032063,2]
[385873366,1758078647104,-500.0,0.00032063,2]
[385873368,1758078647113,-151.0,0.00032063,2]
[385873370,1758078647123,-1000.0,0.00032063,2]
[385873372,1758078647132,-151.0,0.00032063,2]
[385873374,1758078647141,-500.0,0.00032063,2]
[385873376,1758078647151,-151.0,0.00032063,2]
[385873378,1758078647165,-1000.0,0.00032063,2]
[385873380,1758078647175,-500.0,0.00032063,2]
[385873382,1758078647185,-151.0,0.00032063,2]
[385873384,1758078647194,-1000.0,0.00032063,2]
[385873386,1758078647205,-151.0,0.00032063,2]
[385873388,1758078647214,-1000.0,0.00032063,2]
[385873390,1758078647224,-151.0,0.00032063,2]
[385873392,1758078647234,-1000.0,0.00032063,2]
[385873394,1758078647244,-151.0,0.00032063,2]
[385873397,1758078647253,-1000.0,0.00032063,2]
[385873399,1758078647263,-151.0,0.00032063,2]
[385873400,1758078647272,-1000.0,0.00032063,2]
[385873401,1758078647281,-1000.0,0.00032063,2]
[385873402,1758078647290,-1000.0,0.00032063,2]
[385873403,1758078647300,-1000.0,0.00032063,2]
[385873404,1758078647309,-1000.0,0.00032063,2]
[385873405,1758078647318,-1000.0,0.00032063,2]
[385873406,1758078647328,-3292.0,0.00032098,3]
[385873407,1758078647337,-156.587,0.00032118,2]
[385873408,1758078647347,-8882.6885148,0.00032118,2]
[385873409,1758078647356,-300.0,0.00032162,10]
[385873410,1758078647365,-325.44623276,0.00032162,10]
[385873411,1758078647374,-155.57436208,0.00032165,2]
[385873412,1758078647384,-162.380719,0.00032173,2]
[385873413,1758078647393,-9211.34798985,0.00032173,2]
[385873414,1758078647403,-557.0,0.000322,2]
[385873415,1758078647413,-168.3888056,0.00032228,2]
[385873416,1758078647422,-9552.16786547,0.00032228,2]
[385873417,1758078647432,-151.0,0.00032228,7]
[385873418,1758078647442,-151.0,0.00032228,7]
[385873419,1758078647452,-151.0,0.00032228,7]
[385873420,1758078647463,-422.848426,0.00032228,7]
[385873421,1758078647475,-422.848426,0.00032228,7]
[385873422,1758078647488,-422.848426,0.00032228,7]
[385873423,1758078647498,-151.0,0.00032228,7]
[385873424,1758078647508,-151.0,0.00032228,7]
[385873425,1758078647518,-422.848426,0.00032228,7]
[385873426,1758078647532,-151.0,0.00032228,7]
[385873427,1758078647542,-151.0,0.00032228,7]
[385873428,1758078647551,-151.0,0.00032228,7]
[385873429,1758078647563,-151.0,0.00032228,7]
[385873430,1758078647573,-168.190578,0.00032228,7]
[385873431,1758078647583,-151.0,0.00032228,7]
[385873432,1758078647592,-151.0,0.00032228,7]
[385873433,1758078647602,-153.887997,0.00032228,7]
[385873434,1758078647612,-348.032368,0.00032228,7]
[385873435,1758078647621,-348.032368,0.00032228,7]
[385873436,1758078647631,-348.032368,0.00032228,7]